[Event "44th Chess Olympiad Open 2022"]
[Site "Chennai"]
[Date "2022.08.02"]
[Round "5.56"]
[White "Khusenkhojaev, Mustafokhuja"]
[Black "Sanches, Casanova Romario"]
[Result "1-0"]
[WhiteElo "2238"]
[BlackElo "2066"]
[Annotator "NA RC"]
[PlyCount "99"]
[EventDate "2022.??.??"]
[TimeControl "60"]

1. d4 {[%emt 0:00:04]} Nf6 {[%emt 0:00:08]} 2. Nf3 {[%emt 0:00:10]} g6 {
[%emt 0:01:11]} 3. c4 {[%emt 0:00:10]} Bg7 {[%emt 0:00:02]} 4. Nc3 {[%emt 0:00:
00]} O-O {[%emt 0:00:14]} 5. g3 {[%emt 0:00:12]} d6 {[%emt 0:00:19]} 6. Bg2 {
[%emt 0:00:12]} Nc6 {[%emt 0:00:15]} 7. O-O {[%emt 0:00:13]} e5 {[%emt 0:03:15]
} 8. d5 {[%emt 0:00:36]} Ne7 {[%emt 0:02:52]} 9. e4 {[%emt 0:00:16]} a5 {
[%emt 0:00:39]} 10. Be3 {[%emt 0:01:35]} Ng4 {[%emt 0:11:13]} 11. Bd2 {[%emt 0:
00:00]} f5 {[%emt 0:01:42]} 12. exf5 {[%emt 0:08:18]} Nxf5 {[%emt 0:05:00]} 13.
h3 {[%emt 0:07:53]} Nf6 {[%emt 0:04:00]} 14. Ng5 {[%emt 0:04:10]} Nd4 {[%emt 0:
00:00]} 15. Ne2 {[%emt 0:04:07]} Nxe2+ {[%emt 0:03:25]} 16. Qxe2 {[%emt 0:00:
00]} h6 {[%emt 0:00:19]} 17. Ne6 {[%emt 0:02:05]} Bxe6 {[%emt 0:00:44]} 18.
dxe6 {[%emt 0:00:02]} c6 {[%emt 0:01:05]} 19. f4 {[%emt 0:17:03]} Qe7 {[%emt 0:
00:00]} 20. fxe5 {[%emt 0:04:05]} Qxe6 {[%emt 0:00:34]} 21. Qd3 {[%emt 0:01:28]
} Qxe5 {[%emt 0:10:48]} 22. Rae1 {[%emt 0:02:41]} Qh5 {[%emt 0:03:04]} 23. g4 {
[%emt 0:04:38]} Nxg4 {[%emt 0:03:02]} 24. hxg4 {[%emt 0:00:14]} Qxg4 {[%emt 0:
00:00]} 25. Bc3 {[%emt 0:00:20]} Bxc3 {[%emt 0:07:10]} 26. Qxc3 {[%emt 0:00:56]
} Rxf1+ {[%emt 0:01:41]} 27. Rxf1 {[%emt 0:00:16]} Re8 {[%emt 0:01:24]} 28. Qf6
{[%emt 0:01:23]} Qe6 {[%emt 0:00:17]} 29. b3 {[%emt 0:00:13]} Qe3+ {[%emt 0:00:
00]} 30. Kh2 {[%emt 0:04:30]} Qe5+ {[%emt 0:00:13]} 31. Kh1 {[%emt 0:00:58]}
Qe6 {[%emt 0:13:03]} 32. Qf2 {[%emt 0:08:14]} Qe7 {[%emt 0:01:26]} 33. Qf4 {
[%emt 0:02:46]} Rf8 {[%emt 0:01:29]} 34. Qxh6 {[%emt 0:01:33]} Rxf1+ {[%emt 0:
00:00]} 35. Bxf1 {[%emt 0:00:08]} Qe4+ {[%emt 0:00:30]} 36. Bg2 {[%emt 0:00:33]
} Qe1+ {[%emt 0:00:33]} 37. Kh2 {[%emt 0:00:39]} Qe5+ {[%emt 0:00:12]} 38. Kh3
{[%emt 0:00:35]} Qf5+ {[%emt 0:00:40]} 39. Kg3 {[%emt 0:00:28]} g5 {[%emt 0:00:
00]} 40. Qxd6 {[%emt 0:00:13]} Kf7 {[%emt 0:02:13]} 41. Bf3 {[%emt 0:31:56]}
Kg7 {[%emt 0:32:11]} 42. Qd4+ {[%emt 0:02:33]} Kf8 {[%emt 0:00:00]} 43. Qe4 {
[%emt 0:00:00]} Qxe4 {[%emt 0:00:00]} 44. Bxe4 {[%emt 0:00:00]} Ke7 {[%emt 0:
00:00]} 45. Bf5 {[%emt 0:00:00]} Kd6 {[%emt 0:00:00]} 46. Kg4 {[%emt 0:00:00]}
Kc5 {[%emt 0:00:00]} 47. Bc8 {[%emt 0:00:00]} b5 {[%emt 0:00:00]} 48. cxb5 {
[%emt 0:00:00]} cxb5 {[%emt 0:00:00]} 49. a4 {[%emt 0:00:00]} Kb4 {[%emt 0:00:
00]} 50. Bd7 {[%emt 0:00:00]} 1-0

[Event "44th Chess Olympiad Open 2022"]
[Site "Chennai"]
[Date "2022.08.02"]
[Round "5.56"]
[White "Ilkhomi, Jaloliddin"]
[Black "Matoewi, Roger"]
[Result "1-0"]
[WhiteElo "2076"]
[BlackElo "2015"]
[Annotator "NA RC"]
[PlyCount "127"]
[EventDate "2022.??.??"]
[TimeControl "60"]

1. d4 {[%emt 0:00:05]} d5 {[%emt 0:00:10]} 2. Bf4 {[%emt 0:00:59]} Nf6 {
[%emt 0:00:22]} 3. e3 {[%emt 0:00:37]} c6 {[%emt 0:00:05]} 4. Nd2 {[%emt 0:00:
00]} Qb6 {[%emt 0:00:53]} 5. Rb1 {[%emt 0:00:28]} Bf5 {[%emt 0:00:27]} 6. Bd3 {
[%emt 0:01:28]} Bxd3 {[%emt 0:05:46]} 7. cxd3 {[%emt 0:00:06]} Nbd7 {[%emt 0:
00:00]} 8. Ngf3 {[%emt 0:02:49]} e6 {[%emt 0:00:08]} 9. O-O {[%emt 0:00:09]}
Nh5 {[%emt 0:06:42]} 10. Be5 {[%emt 0:05:55]} f6 {[%emt 0:03:24]} 11. Bg3 {
[%emt 0:01:39]} Nxg3 {[%emt 0:00:11]} 12. hxg3 {[%emt 0:00:03]} Bd6 {[%emt 0:
00:00]} 13. b4 {[%emt 0:01:55]} O-O {[%emt 0:00:50]} 14. Qb3 {[%emt 0:00:45]}
Kh8 {[%emt 0:02:30]} 15. e4 {[%emt 0:00:58]} a6 {[%emt 0:01:24]} 16. a4 {
[%emt 0:01:17]} Qc7 {[%emt 0:06:09]} 17. Rfc1 {[%emt 0:03:01]} b5 {[%emt 0:00:
00]} 18. Qc3 {[%emt 0:04:19]} Rfc8 {[%emt 0:02:15]} 19. a5 {[%emt 0:01:35]} Qd8
{[%emt 0:01:18]} 20. e5 {[%emt 0:01:42]} Be7 {[%emt 0:00:16]} 21. exf6 {
[%emt 0:02:26]} gxf6 {[%emt 0:04:43]} 22. Re1 {[%emt 0:01:56]} Nf8 {[%emt 0:00:
00]} 23. Nb3 {[%emt 0:02:20]} Ra7 {[%emt 0:00:25]} 24. Re2 {[%emt 0:03:59]} Bd6
{[%emt 0:01:37]} 25. Nc5 {[%emt 0:04:09]} Bxc5 {[%emt 0:00:38]} 26. Qxc5 {
[%emt 0:00:10]} Qe7 {[%emt 0:00:17]} 27. Rc1 {[%emt 0:01:20]} Qxc5 {[%emt 0:00:
00]} 28. Rxc5 {[%emt 0:00:06]} Kg7 {[%emt 0:00:37]} 29. Rc1 {[%emt 0:00:57]}
Kf7 {[%emt 0:00:15]} 30. Nd2 {[%emt 0:00:31]} Rac7 {[%emt 0:01:06]} 31. f4 {
[%emt 0:00:48]} Nd7 {[%emt 0:04:27]} 32. Kf2 {[%emt 0:01:22]} Re8 {[%emt 0:00:
00]} 33. Rh1 {[%emt 0:01:32]} Kg7 {[%emt 0:02:24]} 34. g4 {[%emt 0:01:19]} Rcc8
{[%emt 0:01:01]} 35. Nf3 {[%emt 0:00:15]} h6 {[%emt 0:04:19]} 36. g5 {[%emt 0:
00:00]} hxg5 {[%emt 0:00:52]} 37. fxg5 {[%emt 0:00:07]} Re7 {[%emt 0:01:35]}
38. gxf6+ {[%emt 0:00:54]} Nxf6 {[%emt 0:00:16]} 39. Ng5 {[%emt 0:00:04]} e5 {
[%emt 0:11:44]} 40. dxe5 {[%emt 0:11:22]} Ng4+ {[%emt 0:05:01]} 41. Kg3 {
[%emt 0:30:19]} Rxe5 {[%emt 0:30:36]} 42. Rxe5 {[%emt 0:01:20]} Nxe5 {[%emt 0:
00:00]} 43. Ne6+ {[%emt 0:00:04]} Kf6 {[%emt 0:03:27]} 44. Nc5 {[%emt 0:00:26]}
Rg8+ {[%emt 0:00:18]} 45. Kf2 {[%emt 0:00:18]} Ng4+ {[%emt 0:02:19]} 46. Ke2 {
[%emt 0:00:18]} Ne5 {[%emt 0:00:13]} 47. d4 {[%emt 0:00:47]} Nc4 {[%emt 0:00:
00]} 48. Rh6+ {[%emt 0:00:15]} Ke7 {[%emt 0:00:18]} 49. Kf2 {[%emt 0:03:02]}
Rg4 {[%emt 0:00:52]} 50. Re6+ {[%emt 0:00:17]} Kf7 {[%emt 0:00:22]} 51. Rxc6 {
[%emt 0:01:56]} Rxd4 {[%emt 0:00:15]} 52. Rxa6 {[%emt 0:00:46]} Ne5 {[%emt 0:
00:00]} 53. Ra7+ {[%emt 0:01:01]} Kg6 {[%emt 0:00:51]} 54. Re7 {[%emt 0:02:20]}
Kf6 {[%emt 0:03:21]} 55. Re6+ {[%emt 0:00:59]} Kf5 {[%emt 0:00:11]} 56. Ke3 {
[%emt 0:02:06]} Rc4 {[%emt 0:07:47]} 57. a6 {[%emt 0:00:37]} d4+ {[%emt 0:00:
00]} 58. Kd2 {[%emt 0:00:38]} Rc3 {[%emt 0:00:52]} 59. a7 {[%emt 0:00:34]} Nc4+
{[%emt 0:00:23]} 60. Kd1 {[%emt 0:01:33]} Nb2+ {[%emt 0:03:43]} 61. Ke1 {
[%emt 0:00:14]} Ra3 {[%emt 0:02:15]} 62. Ra6 {[%emt 0:00:19]} Re3+ {[%emt 0:00:
00]} 63. Kf2 {[%emt 0:00:23]} Nd1+ {[%emt 0:00:38]} 64. Kf1 {[%emt 0:00:17]}
1-0

[Event "44th Chess Olympiad Open 2022"]
[Site "Chennai"]
[Date "2022.08.02"]
[Round "5.56"]
[White "Gajadin, Dewperkash"]
[Black "Karimov, Alisher"]
[Result "0-1"]
[WhiteElo "1990"]
[BlackElo "2234"]
[Annotator "NA RC"]
[PlyCount "94"]
[EventDate "2022.??.??"]
[TimeControl "60"]

1. e4 {[%emt 0:00:04]} c5 {[%emt 0:00:11]} 2. Nf3 {[%emt 0:00:23]} Nc6 {
[%emt 0:00:10]} 3. d4 {[%emt 0:03:43]} cxd4 {[%emt 0:00:08]} 4. Nxd4 {[%emt 0:
00:00]} Nf6 {[%emt 0:00:09]} 5. Nc3 {[%emt 0:03:16]} g6 {[%emt 0:00:10]} 6.
Nxc6 {[%emt 0:05:06]} dxc6 {[%emt 0:02:39]} 7. Qxd8+ {[%emt 0:04:30]} Kxd8 {
[%emt 0:00:08]} 8. Bf4 {[%emt 0:03:59]} Ke8 {[%emt 0:00:47]} 9. a4 {[%emt 0:00:
00]} b6 {[%emt 0:03:32]} 10. Bc4 {[%emt 0:08:43]} Bg7 {[%emt 0:01:49]} 11. Be5
{[%emt 0:02:45]} Rg8 {[%emt 0:05:21]} 12. Ke2 {[%emt 0:05:19]} Bh6 {[%emt 0:00:
00]} 13. h3 {[%emt 0:04:50]} Nd7 {[%emt 0:00:58]} 14. Bd4 {[%emt 0:02:19]} Bb7
{[%emt 0:05:39]} 15. Rhd1 {[%emt 0:02:09]} Bf4 {[%emt 0:12:02]} 16. g3 {
[%emt 0:03:09]} Bc7 {[%emt 0:02:37]} 17. f4 {[%emt 0:07:49]} g5 {[%emt 0:02:19]
} 18. Rg1 {[%emt 0:03:48]} e5 {[%emt 0:12:00]} 19. fxe5 {[%emt 0:14:12]} Nxe5 {
[%emt 0:00:49]} 20. Bxe5 {[%emt 0:01:24]} Bxe5 {[%emt 0:00:03]} 21. Rad1 {
[%emt 0:00:49]} Bc8 {[%emt 0:01:55]} 22. g4 {[%emt 0:01:27]} h5 {[%emt 0:00:50]
} 23. Kf3 {[%emt 0:00:43]} Rh8 {[%emt 0:01:43]} 24. Rh1 {[%emt 0:01:22]} Rh6 {
[%emt 0:00:56]} 25. gxh5 {[%emt 0:02:19]} Rxh5 {[%emt 0:00:44]} 26. Kg2 {
[%emt 0:01:53]} Ke7 {[%emt 0:01:02]} 27. Ne2 {[%emt 0:00:52]} Rh4 {[%emt 0:00:
00]} 28. Ng3 {[%emt 0:02:28]} Bxb2 {[%emt 0:00:48]} 29. Be2 {[%emt 0:01:18]}
Be5 {[%emt 0:00:48]} 30. Nf5+ {[%emt 0:00:47]} Bxf5 {[%emt 0:00:13]} 31. exf5 {
[%emt 0:00:01]} Rxa4 {[%emt 0:00:35]} 32. Bf3 {[%emt 0:00:24]} Rc4 {[%emt 0:00:
00]} 33. Rd2 {[%emt 0:00:21]} Rd8 {[%emt 0:00:31]} 34. f6+ {[%emt 0:01:04]}
Bxf6 {[%emt 0:00:50]} 35. Re1+ {[%emt 0:00:22]} Kf8 {[%emt 0:00:06]} 36. Ree2 {
[%emt 0:00:46]} Rxd2 {[%emt 0:00:30]} 37. Rxd2 {[%emt 0:00:06]} Be5 {[%emt 0:
00:00]} 38. Be2 {[%emt 0:00:48]} Rc3 {[%emt 0:00:24]} 39. Bd3 {[%emt 0:00:06]}
a5 {[%emt 0:00:39]} 40. Re2 {[%emt 0:00:09]} f6 {[%emt 0:00:18]} 41. Kf3 {
[%emt 0:30:02]} Ke7 {[%emt 0:30:32]} 42. Kg4 {[%emt 0:00:24]} a4 {[%emt 0:00:
00]} 43. Re4 {[%emt 0:01:18]} b5 {[%emt 0:00:30]} 44. Kf5 {[%emt 0:00:00]} a3 {
[%emt 0:00:00]} 45. h4 {[%emt 0:00:00]} gxh4 {[%emt 0:00:00]} 46. Rxh4 {
[%emt 0:00:00]} a2 {[%emt 0:00:00]} 47. Rh7+ {[%emt 0:00:00]} Kd6 {[%emt 0:00:
00]} 0-1

[Event "44th Chess Olympiad Open 2022"]
[Site "Chennai"]
[Date "2022.08.02"]
[Round "5.56"]
[White "Kalidjo, Imaan"]
[Black "Sharifov, Mekhriddin"]
[Result "0-1"]
[WhiteElo "1819"]
[BlackElo "2097"]
[Annotator "NA RC"]
[PlyCount "128"]
[EventDate "2022.??.??"]
[TimeControl "60"]

1. c4 {[%emt 0:00:04]} Nf6 {[%emt 0:00:07]} 2. g3 {[%emt 0:00:08]} c6 {[%emt 0:
00:00]} 3. Bg2 {[%emt 0:00:12]} d5 {[%emt 0:00:05]} 4. d4 {[%emt 0:02:13]} Bg4
{[%emt 0:00:13]} 5. h3 {[%emt 0:01:33]} Bf5 {[%emt 0:00:26]} 6. Nc3 {[%emt 0:
00:00]} e6 {[%emt 0:00:12]} 7. Qb3 {[%emt 0:01:33]} Qb6 {[%emt 0:01:14]} 8. Nf3
{[%emt 0:03:03]} Be7 {[%emt 0:03:09]} 9. O-O {[%emt 0:04:28]} O-O {[%emt 0:00:
00]} 10. Qxb6 {[%emt 0:09:03]} axb6 {[%emt 0:00:02]} 11. Ne5 {[%emt 0:01:19]}
h6 {[%emt 0:03:24]} 12. g4 {[%emt 0:06:55]} Bh7 {[%emt 0:05:21]} 13. g5 {
[%emt 0:06:46]} hxg5 {[%emt 0:00:07]} 14. Bxg5 {[%emt 0:00:07]} Bb4 {[%emt 0:
00:00]} 15. a3 {[%emt 0:09:26]} Bxc3 {[%emt 0:01:01]} 16. bxc3 {[%emt 0:00:02]}
Ne4 {[%emt 0:00:21]} 17. Bxe4 {[%emt 0:06:34]} Bxe4 {[%emt 0:00:09]} 18. Be7 {
[%emt 0:00:58]} Re8 {[%emt 0:01:01]} 19. Bd6 {[%emt 0:00:33]} Na6 {[%emt 0:00:
00]} 20. c5 {[%emt 0:23:41]} bxc5 {[%emt 0:02:20]} 21. dxc5 {[%emt 0:03:57]}
Rad8 {[%emt 0:03:09]} 22. Nd3 {[%emt 0:04:38]} b6 {[%emt 0:00:05]} 23. Nb4 {
[%emt 0:00:36]} Nxc5 {[%emt 0:00:39]} 24. Bxc5 {[%emt 0:00:50]} bxc5 {[%emt 0:
00:00]} 25. Nxc6 {[%emt 0:00:07]} Rd6 {[%emt 0:00:56]} 26. Ne5 {[%emt 0:03:41]}
Ra8 {[%emt 0:00:43]} 27. Ra2 {[%emt 0:04:46]} Ra4 {[%emt 0:22:40]} 28. Kh2 {
[%emt 0:03:58]} f6 {[%emt 0:00:28]} 29. Ng4 {[%emt 0:00:46]} Rb6 {[%emt 0:00:
00]} 30. f3 {[%emt 0:01:25]} Bg6 {[%emt 0:01:02]} 31. Rg1 {[%emt 0:00:42]} Kf7
{[%emt 0:04:41]} 32. Nf2 {[%emt 0:01:01]} Rb3 {[%emt 0:00:58]} 33. Nd1 {
[%emt 0:00:17]} Raxa3 {[%emt 0:00:25]} 34. Rd2 {[%emt 0:00:10]} Bh5 {[%emt 0:
00:00]} 35. Kg3 {[%emt 0:01:05]} Ra1 {[%emt 0:01:53]} 36. Kf2 {[%emt 0:00:31]}
g5 {[%emt 0:02:06]} 37. Rb2 {[%emt 0:00:32]} c4 {[%emt 0:00:53]} 38. Re1 {
[%emt 0:00:34]} Bg6 {[%emt 0:02:04]} 39. Rd2 {[%emt 0:00:21]} Ke7 {[%emt 0:00:
00]} 40. h4 {[%emt 0:00:35]} gxh4 {[%emt 0:00:17]} 41. Rg1 {[%emt 0:30:24]}
Rbb1 {[%emt 0:32:24]} 42. Rxg6 {[%emt 0:00:00]} Rxd1 {[%emt 0:00:00]} 43. Rxd1
{[%emt 0:00:00]} Rxd1 {[%emt 0:00:00]} 44. Rg4 {[%emt 0:00:00]} Rc1 {[%emt 0:
00:00]} 45. Rxh4 {[%emt 0:00:00]} Rxc3 {[%emt 0:00:00]} 46. Ke1 {[%emt 0:00:00]
} Rc2 {[%emt 0:00:00]} 47. Kd1 {[%emt 0:00:00]} Ra2 {[%emt 0:00:00]} 48. Rd4 {
[%emt 0:00:00]} Kd6 {[%emt 0:00:00]} 49. Rf4 {[%emt 0:00:00]} Ke5 {[%emt 0:00:
00]} 50. Rh4 {[%emt 0:00:00]} d4 {[%emt 0:00:00]} 51. Re4+ {[%emt 0:00:00]} Kd5
{[%emt 0:00:00]} 52. Rf4 {[%emt 0:00:00]} f5 {[%emt 0:00:00]} 53. Rh4 {[%emt 0:
00:00]} Kc5 {[%emt 0:00:00]} 54. Rh6 {[%emt 0:00:00]} Kd5 {[%emt 0:00:00]} 55.
Rh8 {[%emt 0:00:00]} Ra6 {[%emt 0:00:00]} 56. Kd2 {[%emt 0:00:00]} e5 {[%emt 0:
00:00]} 57. Rh5 {[%emt 0:00:00]} Ra2+ {[%emt 0:00:00]} 58. Kd1 {[%emt 0:00:00]}
Ra1+ {[%emt 0:00:00]} 59. Kd2 {[%emt 0:00:00]} c3+ {[%emt 0:00:00]} 60. Kc2 {
[%emt 0:00:00]} Re1 {[%emt 0:00:00]} 61. Rxf5 {[%emt 0:00:00]} Rxe2+ {[%emt 0:
00:00]} 62. Kb3 {[%emt 0:00:00]} Rb2+ {[%emt 0:00:00]} 63. Ka3 {[%emt 0:00:00]}
Rb7 {[%emt 0:00:00]} 64. f4 {[%emt 0:00:00]} Kc4 {[%emt 0:00:00]} 0-1

[Event "44th Chess Olympiad Open 2022"]
[Site "Chennai"]
[Date "2022.08.02"]
[Round "5.57"]
[White "Lee, Jun Hyeok"]
[Black "Mirzaad, S.wahabuddin"]
[Result "1-0"]
[WhiteElo "2390"]
[BlackElo "1999"]
[Annotator "RC"]
[PlyCount "61"]
[EventDate "2022.??.??"]
[TimeControl "60"]

1. e4 {[%emt 0:00:06]} d5 {[%emt 0:01:32]} 2. exd5 {[%emt 0:00:06]} Qxd5 {
[%emt 0:00:09]} 3. Nc3 {[%emt 0:00:06]} Qa5 {[%emt 0:00:49]} 4. d4 {[%emt 0:00:
00]} c6 {[%emt 0:00:41]} 5. Nf3 {[%emt 0:00:14]} Nf6 {[%emt 0:00:44]} 6. Bc4 {
[%emt 0:00:12]} Bg4 {[%emt 0:05:16]} 7. h3 {[%emt 0:00:05]} Bxf3 {[%emt 0:00:
00]} 8. Qxf3 {[%emt 0:00:06]} Nbd7 {[%emt 0:00:55]} 9. Bd2 {[%emt 0:01:24]} Qb6
{[%emt 0:02:01]} 10. O-O-O {[%emt 0:05:11]} e6 {[%emt 0:02:35]} 11. Rhe1 {
[%emt 0:06:16]} Be7 {[%emt 0:02:45]} 12. Bf4 {[%emt 0:35:51]} O-O {[%emt 0:00:
00]} 13. g4 {[%emt 0:00:27]} Rfe8 {[%emt 0:05:48]} 14. g5 {[%emt 0:00:58]} Nd5
{[%emt 0:00:55]} 15. Ne4 {[%emt 0:00:15]} Qd8 {[%emt 0:05:28]} 16. h4 {[%emt 0:
00:00]} b5 {[%emt 0:01:32]} 17. Bd3 {[%emt 0:04:06]} Nb4 {[%emt 0:03:26]} 18.
a3 {[%emt 0:03:01]} Nxd3+ {[%emt 0:00:29]} 19. Rxd3 {[%emt 0:00:05]} Nb6 {
[%emt 0:07:36]} 20. Rg1 {[%emt 0:01:54]} Nd5 {[%emt 0:02:00]} 21. Be5 {[%emt 0:
00:00]} Bf8 {[%emt 0:18:25]} 22. h5 {[%emt 0:01:14]} a5 {[%emt 0:08:29]} 23. g6
{[%emt 0:10:39]} f6 {[%emt 0:07:22]} 24. gxh7+ {[%emt 0:00:14]} Kh8 {[%emt 0:
00:00]} 25. h6 {[%emt 0:00:11]} Ra7 {[%emt 0:02:56]} 26. Bh2 {[%emt 0:05:48]}
g5 {[%emt 0:06:24]} 27. Nxf6 {[%emt 0:08:22]} Nxf6 {[%emt 0:01:22]} 28. Be5 {
[%emt 0:00:04]} Rf7 {[%emt 0:01:15]} 29. Qh5 {[%emt 0:00:13]} Rxh7 {[%emt 0:00:
00]} 30. Rf3 {[%emt 0:01:26]} Be7 {[%emt 0:00:25]} 31. Rxf6 {[%emt 0:00:25]}
1-0

[Event "44th Chess Olympiad Open 2022"]
[Site "Chennai"]
[Date "2022.08.02"]
[Round "5.57"]
[White "Amini, Habibullah"]
[Black "Kwon, Sehyun"]
[Result "0-1"]
[WhiteElo "2035"]
[BlackElo "2225"]
[Annotator "NA RC"]
[PlyCount "94"]
[EventDate "2022.??.??"]
[TimeControl "60"]

1. d4 {[%emt 0:00:02]} d5 {[%emt 0:01:06]} 2. Bf4 {[%emt 0:00:11]} Nf6 {
[%emt 0:00:51]} 3. e3 {[%emt 0:00:21]} e6 {[%emt 0:00:13]} 4. c3 {[%emt 0:00:
00]} Bd6 {[%emt 0:01:26]} 5. Bg3 {[%emt 0:00:27]} O-O {[%emt 0:01:28]} 6. Nf3 {
[%emt 0:00:22]} b6 {[%emt 0:05:08]} 7. Nbd2 {[%emt 0:00:46]} c5 {[%emt 0:00:44]
} 8. Ne5 {[%emt 0:01:55]} Bb7 {[%emt 0:03:36]} 9. Bd3 {[%emt 0:07:40]} Nc6 {
[%emt 0:00:45]} 10. f4 {[%emt 0:02:07]} Ne7 {[%emt 0:01:35]} 11. O-O {[%emt 0:
00:00]} Nf5 {[%emt 0:01:12]} 12. Qf3 {[%emt 0:03:17]} Be7 {[%emt 0:02:02]} 13.
Rad1 {[%emt 0:04:56]} Nd6 {[%emt 0:01:31]} 14. Bh4 {[%emt 0:04:57]} Nfe4 {
[%emt 0:03:44]} 15. Bxe7 {[%emt 0:00:09]} Qxe7 {[%emt 0:00:35]} 16. Qh3 {
[%emt 0:00:22]} Rac8 {[%emt 0:13:09]} 17. Nxe4 {[%emt 0:14:19]} dxe4 {[%emt 0:
00:00]} 18. Be2 {[%emt 0:00:24]} b5 {[%emt 0:08:07]} 19. dxc5 {[%emt 0:08:21]}
Rxc5 {[%emt 0:01:01]} 20. Rd2 {[%emt 0:00:09]} Bd5 {[%emt 0:05:40]} 21. Rfd1 {
[%emt 0:00:44]} a5 {[%emt 0:01:14]} 22. a3 {[%emt 0:07:07]} Rb8 {[%emt 0:09:58]
} 23. Rd4 {[%emt 0:07:49]} Rd8 {[%emt 0:10:18]} 24. a4 {[%emt 0:05:40]} f6 {
[%emt 0:05:49]} 25. Ng4 {[%emt 0:02:02]} bxa4 {[%emt 0:03:01]} 26. Nf2 {
[%emt 0:05:44]} a3 {[%emt 0:02:55]} 27. c4 {[%emt 0:00:12]} axb2 {[%emt 0:00:
00]} 28. Rb1 {[%emt 0:00:01]} Nxc4 {[%emt 0:00:33]} 29. Bxc4 {[%emt 0:01:33]}
Rxc4 {[%emt 0:01:24]} 30. Rxb2 {[%emt 0:06:24]} Rc1+ {[%emt 0:03:20]} 31. Rd1 {
[%emt 0:02:30]} Rxd1+ {[%emt 0:00:38]} 32. Nxd1 {[%emt 0:00:01]} Qa3 {[%emt 0:
00:00]} 33. Rb1 {[%emt 0:04:17]} Qd3 {[%emt 0:05:11]} 34. Ra1 {[%emt 0:00:06]}
a4 {[%emt 0:00:41]} 35. f5 {[%emt 0:02:27]} e5 {[%emt 0:00:22]} 36. Qg3 {
[%emt 0:01:10]} Bb3 {[%emt 0:00:36]} 37. Nf2 {[%emt 0:01:41]} Qc3 {[%emt 0:00:
00]} 38. Rf1 {[%emt 0:00:02]} Qb4 {[%emt 0:02:21]} 39. Qg4 {[%emt 0:00:57]} Bc2
{[%emt 0:00:56]} 40. Qe2 {[%emt 0:01:04]} Bd3 {[%emt 0:00:47]} 41. Qd1 {
[%emt 0:31:07]} a3 {[%emt 0:31:14]} 42. h4 {[%emt 0:04:00]} a2 {[%emt 0:00:00]}
43. h5 {[%emt 0:00:00]} Qb1 {[%emt 0:00:00]} 44. Nxd3 {[%emt 0:00:00]} Qxd1 {
[%emt 0:00:00]} 45. Rxd1 {[%emt 0:00:00]} exd3 {[%emt 0:00:00]} 46. Kf2 {
[%emt 0:00:00]} d2 {[%emt 0:00:00]} 47. Ke2 {[%emt 0:00:00]} Rb8 {[%emt 0:00:
00]} 0-1

[Event "44th Chess Olympiad Open 2022"]
[Site "Chennai"]
[Date "2022.08.02"]
[Round "5.57"]
[White "Li, Georgiy"]
[Black "Sakhawaty, Sepehr"]
[Result "1/2-1/2"]
[WhiteElo "1994"]
[BlackElo "1809"]
[Annotator "NA RC"]
[PlyCount "99"]
[EventDate "2022.??.??"]
[TimeControl "60"]

1. c4 {[%emt 0:00:06]} c5 {[%emt 0:00:05]} 2. Nf3 {[%emt 0:00:13]} g6 {[%emt 0:
00:00]} 3. g3 {[%emt 0:02:54]} Bg7 {[%emt 0:00:41]} 4. Bg2 {[%emt 0:00:46]} Nc6
{[%emt 0:00:22]} 5. O-O {[%emt 0:00:25]} e5 {[%emt 0:02:14]} 6. Nc3 {[%emt 0:
00:00]} Nge7 {[%emt 0:00:40]} 7. d3 {[%emt 0:01:28]} d6 {[%emt 0:00:40]} 8. Bg5
{[%emt 0:00:39]} Be6 {[%emt 0:01:32]} 9. Qc1 {[%emt 0:06:45]} O-O {[%emt 0:00:
00]} 10. Bh6 {[%emt 0:01:02]} f6 {[%emt 0:16:05]} 11. Rb1 {[%emt 0:01:44]} Qd7
{[%emt 0:05:44]} 12. Re1 {[%emt 0:04:20]} Bh3 {[%emt 0:09:22]} 13. Bh1 {
[%emt 0:00:39]} Nf5 {[%emt 0:01:14]} 14. Bxg7 {[%emt 0:03:15]} Kxg7 {[%emt 0:
00:00]} 15. e3 {[%emt 0:02:30]} h5 {[%emt 0:01:56]} 16. a3 {[%emt 0:03:54]} a5
{[%emt 0:00:58]} 17. Nd5 {[%emt 0:01:40]} Rab8 {[%emt 0:08:34]} 18. b4 {
[%emt 0:00:59]} b6 {[%emt 0:08:50]} 19. Qd2 {[%emt 0:05:21]} Nfe7 {[%emt 0:00:
00]} 20. bxc5 {[%emt 0:15:14]} bxc5 {[%emt 0:02:03]} 21. Nxe7 {[%emt 0:04:08]}
Qxe7 {[%emt 0:02:00]} 22. Rb5 {[%emt 0:08:47]} Bd7 {[%emt 0:06:05]} 23. Reb1 {
[%emt 0:00:56]} a4 {[%emt 0:00:54]} 24. Rb7 {[%emt 0:00:56]} Rxb7 {[%emt 0:00:
00]} 25. Rxb7 {[%emt 0:00:11]} Rb8 {[%emt 0:00:01]} 26. Rxb8 {[%emt 0:01:23]}
Nxb8 {[%emt 0:00:01]} 27. Qa5 {[%emt 0:00:31]} Bc6 {[%emt 0:03:27]} 28. Nd2 {
[%emt 0:01:45]} Bxh1 {[%emt 0:09:00]} 29. Kxh1 {[%emt 0:00:07]} h4 {[%emt 0:00:
00]} 30. Kg2 {[%emt 0:13:51]} Qb7+ {[%emt 0:02:02]} 31. Kf1 {[%emt 0:00:35]} h3
{[%emt 0:01:09]} 32. Qd8 {[%emt 0:01:44]} Nc6 {[%emt 0:02:17]} 33. Qxd6 {
[%emt 0:00:26]} Na5 {[%emt 0:00:03]} 34. Ke2 {[%emt 0:04:18]} Nb3 {[%emt 0:00:
00]} 35. Ne4 {[%emt 0:00:56]} Nc1+ {[%emt 0:01:22]} 36. Kd1 {[%emt 0:01:47]}
Qb1 {[%emt 0:00:49]} 37. Qxf6+ {[%emt 0:00:18]} Kg8 {[%emt 0:00:16]} 38. Qxg6+
{[%emt 0:00:34]} Kf8 {[%emt 0:00:13]} 39. Qf5+ {[%emt 0:01:57]} Kg8 {[%emt 0:
00:00]} 40. Nf6+ {[%emt 0:03:42]} Kf8 {[%emt 0:00:35]} 41. Nd5+ {[%emt 0:30:43]
} Kg7 {[%emt 0:06:07]} 42. Qg5+ {[%emt 0:00:00]} Kh8 {[%emt 0:00:28]} 43. Qxe5+
{[%emt 0:00:00]} Kg8 {[%emt 0:00:42]} 44. Qe8+ {[%emt 0:00:00]} Kg7 {[%emt 0:
00:00]} 45. Qd7+ {[%emt 0:00:00]} Kh8 {[%emt 0:00:57]} 46. Qxh3+ {[%emt 0:00:
00]} Kg7 {[%emt 0:00:39]} 47. Qd7+ {[%emt 0:00:00]} Kh8 {[%emt 0:00:16]} 48.
Nf6 {[%emt 0:00:00]} Ne2+ {[%emt 0:01:02]} 49. Kxe2 {[%emt 0:00:00]} Qd1+ {
[%emt 0:00:06]} 50. Kxd1 {[%emt 0:00:00]} 1/2-1/2